Cogmind - Beta 12 @@@ ROGUE MODE // 2023.12.05 @ 08:04:39 Player: Dosh Result: Destroyed by as-08955 with Assembled Blade Performance ------------- Evolutions (0) 0 Regions Visited (3) 600 Robots Destroyed (28) 140 Value Destroyed (501) 501 Prototype IDs (0) 0 Alien Tech Used (0) 0 Bonus (-47) -47 TOTAL SCORE: 1194 Bonus ------- Friendly Fire -47 Cogmind --------- Core Integrity 0/250 Matter 300/300 Energy 100/100 System Corruption 2% Temperature Cool (0) Movement Core (350) Ox6 Location -10/Exiles Parts ------- > --- POWER (1) -------- (None) > --- PROPULSION (2) --- (None) > --- UTILITY (2) ------ Large Storage Unit > --- WEAPON (2) ------- (None) > --- INVENTORY (15) --- Ion Engine Light Ion Engine Light Nuclear Core Improved Treads Improved Treads Improved Heat Sink Huge Storage Unit Improved Terrain Scanner Core Shielding Light Armor Plating Shield Generator Hacking Suite Heavy Assault Rifle Grenade Launcher Peak State ------------ > --- POWER ------------ Improved Ion Engine > --- PROPULSION ------- Improved Treads Improved Treads > --- UTILITY ---------- Large Storage Unit Shield Generator > --- WEAPON ----------- Heavy Assault Rifle Heavy Assault Rifle > --- INVENTORY -------- Ion Engine Light Ion Engine Light Nuclear Core Improved Treads Improved Treads Improved Heat Sink Huge Storage Unit Core Shielding Light Armor Plating Shield Generator Hacking Suite Heavy Assault Rifle [Rating: 15] Favorites ----------- Power Light Ion Engine Engine Light Ion Engine Propulsion Improved Treads Treads Improved Treads Utility Large Storage Unit Device Shield Generator Storage Large Storage Unit Weapon Heavy Assault Rifle Energy Gun Medium Laser Ballistic Gun Heavy Assault Rifle Build | -11 -10 -10 -10 ------- Run | Jun Mat Min Exi Slots Evolved . | . . . . Power . | . . . . Propulsion . | . . . . Utility . | . . . . Weapon . | . . . . Parts Attached 16 | 6 9 1 . Power 2 | 1 . 1 . Engine 2 | 1 . 1 . Core . | . . . . Reactor . | . . . . Propulsion 3 | 1 2 . . Treads 3 | 1 2 . . Leg . | . . . . Wheel . | . . . . Hover . | . . . . Flight . | . . . . Utility 4 | 1 3 . . Device 2 | . 2 . . Storage 2 | 1 1 . . Processor . | . . . . Hackware . | . . . . Protection . | . . . . Artifact . | . . . . Weapon 7 | 3 4 . . Energy Gun 2 | 2 . . . Energy Cannon . | . . . . Ballistic Gun 5 | 1 4 . . Ballistic Cannon . | . . . . Launcher . | . . . . Special Weapon . | . . . . Impact Weapon . | . . . . Slashing Weapon . | . . . . Piercing Weapon . | . . . . Special Melee Weapon . | . . . . Unidentified Prototypes . | . . . . Parts Lost 7 | . 1 . 6 Power 1 | . . . 1 Propulsion 2 | . . . 2 Utility 1 | . . . 1 Weapon 3 | . 1 . 2 Highest Loss Streak 6 | . 1 . 6 To Critical Strikes . | . . . . Average Slot Usage (%) 98 | . 97 100 92 Engine 14 | . 14 14 14 Treads 27 | . 26 28 26 Device 13 | . 12 14 10 Storage 14 | . 14 14 14 Ballistic Gun 26 | . 26 28 26 Naked Turns . | . . . . Heaviest Build 35 | 12 32 35 35 Greatest Support 46 | 20 46 46 46 Greatest Overweight (x) 1 | . 1 . 1 Average Overweight (x) . | . . . . Largest Inventory Capacity 15 | 8 15 15 15 Average Capacity 14 | 6 14 15 15 Most Carried 14 | 4 10 14 14 Average Carried 8 | 2 7 11 14 Final Capacity 15 | 8 15 15 15 Final Carried 14 | 4 10 14 14 Class Distribution -------------------- 100% | Mutant Dominant Class ---------------- Mutant | -10/Materials Mutant | -10/Mines Mutant | -10/Exiles Resources | -11 -10 -10 -10 ----------- Run | Jun Mat Min Exi Matter Collected 811 | 260 365 186 . Remotely . | . . . . Salvage Created 783 | . 598 185 . Parts 59 | . 42 17 . Haulers Intercepted . | . . . . Recyclers Shooed . | . . . . Parts Field Recycled . | . . . . Retrieved Matter . | . . . . Parts Self-Destructed . | . . . . Prevented . | . . . . Kills | -11 -10 -10 -10 ------- Run | Jun Mat Min Exi Combat Hostiles Destroyed 23 | . 14 9 . Guns 23 | . 14 9 . Classes Destroyed 7 | . 5 2 . Builder 2 | . . 2 . Recycler 1 | . 1 . . Operator 2 | . 2 . . Watcher 3 | . 3 . . Swarmer 12 | . 6 6 . Grunt 8 | . 8 . . Assembled 3 | . . 3 . Best Kill Streak 5 | . 5 3 . Combat Bots Only 3 | . 3 3 . Max Kills in Single Turn 2 | . 1 2 . Gunslinging 1 | . . 1 . Exploded . | . . . . Melee . | . . . . Uniques/NPCs Destroyed . | . . . . Combat | -11 -10 -10 -10 -------- Run | Jun Mat Min Exi Damage Taken 1230 | . 318 234 678 Core 279 | . 65 42 172 Absorbed by Shields 262 | . 125 94 43 Regen/Repaired (Parts) 71 | . 71 . . Core Remaining (%) 100 | 100 . . . Volleys Fired 72 | . 45 27 . Largest 2 | . 2 2 . Hottest 70 | . 70 46 . Shots Fired 143 | . 89 53 1 Gun 143 | . 89 53 1 Cannon . | . . . . Launcher . | . . . . Special . | . . . . Kinetic 141 | . 87 53 1 Thermal 2 | . 2 . . Explosive . | . . . . Electromagnetic . | . . . . Robot Hit Streak 9 | . 9 6 . Robot Miss Streak 5 | . 5 4 1 Penetration Max . | . . . . Secondary Targets 2 | . . 2 . Max Gunslinging Chain 1 | . . 1 . Shots Hit Robots 76 | . 50 26 . Core Hits 39 | . 26 13 . Critical Kills . | . . . . Critical Parts Destroyed . | . . . . Critical Strikes . | . . . . Melee Attacks . | . . . . Impact . | . . . . Slashing . | . . . . Piercing . | . . . . Sneak Attacks . | . . . . Combat Hostiles . | . . . . Follow-up Attacks . | . . . . Damage Inflicted 1282 | . 783 481 18 Guns 1223 | . 742 481 . Cannons . | . . . . Explosions . | . . . . Melee . | . . . . Ramming 59 | . 41 . 18 Kinetic 1210 | . 729 481 . Thermal 13 | . 13 . . Explosive . | . . . . Electromagnetic . | . . . . Impact . | . . . . Slashing . | . . . . Piercing . | . . . . Highest Corruption 2 | . 2 2 2 Average Corruption 1 | . 1 2 2 Corruption Purged . | . . . . Corruption Blocked . | . . . . Effects 33 | . 19 12 2 Message Errors 8 | . 4 3 1 Matter Fused 6 | . 4 2 . Heat Flow Errors 6 | . 4 2 . Energy Discharges 4 | . 3 1 . Parts Fused 1 | . . 1 . Data Loss (minor) 3 | . 2 1 . Data Loss (major) 1 | . 1 . . Misfires 1 | . . . 1 Alerts 1 | . . 1 . Weapon Failures 2 | . 1 1 . Overload Shots . | . . . . Overflow Damage . | . . . . Projectiles . | . . . . Explosions . | . . . . Melee . | . . . . Knockbacks . | . . . . Impact . | . . . . Kinetic . | . . . . Secondary . | . . . . Self-Inflicted Damage . | . . . . Shots . | . . . . Rammed 11 | . 7 . 4 Targets Rammed 11 | . 7 . 4 Kicked . | . . . . Crushed . | . . . . Highest Temperature 269 | . 265 269 3 Average Temperature 90 | . 94 97 2 Received Heat Transfer 236 | . 102 19 115 Siege Activations . | . . . . Robots Corrupted . | . . . . Combat Hostiles . | . . . . Parts Fried . | . . . . Impact Corruptions . | . . . . Robots Melted . | . . . . Combat Hostiles . | . . . . Parts Melted . | . . . . Heat Transferred 37 | . 37 . . Parts Sabotaged . | . . . . Parts Stolen . | . . . . Parts Stripped . | . . . . Power Chain Reactions . | . . . . Missiles Intercepted . | . . . . Alert | -11 -10 -10 -10 ------- Run | Jun Mat Min Exi Peak Influence 289 | . 289 180 . Initial . | . . . . Average 77 | . 88 58 . Maximum Alert Level 1 | . 1 . . Low Security (%) 92 | 100 89 100 . Level 1 7 | . 10 . . Level 2 . | . . . . Level 3 . | . . . . Level 4 . | . . . . Level 5 . | . . . . High Security . | . . . . Max Security . | . . . . Squads Dispatched 3 | . 3 . . Investigation 1 | . 1 . . Extermination . | . . . . Reinforcement 2 | . 2 . . Assault . | . . . . Garrison . | . . . . Intercept . | . . . . Searches Triggered . | . . . . Construction Impeded . | . . . . Haulers Reinforced . | . . . . Active Scanning Responses . | . . . . Cargo Convoy Interrupts . | . . . . Stealth | -11 -10 -10 -10 --------- Run | Jun Mat Min Exi Distress Signals . | . . . . Communications Jammed . | . . . . Distress Signals . | . . . . Times Spotted 42 | . 21 13 8 Peak Tracking Total 9 | . 4 3 9 Tactical Retreats 3 | . 2 1 . Traps | -11 -10 -10 -10 ------- Run | Jun Mat Min Exi Traps Triggered 3 | . 3 . . Indirectly . | . . . . Trap Hack Attempts . | . . . . Triggered . | . . . . Disarmed . | . . . . Reprogrammed . | . . . . Reused . | . . . . Traps Extracted . | . . . . Installed . | . . . . Triggered . | . . . . Machines | -11 -10 -10 -10 ---------- Run | Jun Mat Min Exi Machines Disabled 1 | . . . 1 Max in Single Turn 1 | . . . 1 Machines Repaired . | . . . . Machines Sabotaged . | . . . . Overloaded Fab Kills . | . . . . Hacking | -11 -10 -10 -10 --------- Run | Jun Mat Min Exi Machines Accessed 4 | . 4 . . Terminals 3 | . 3 . . Fabricators . | . . . . Repair Stations 1 | . 1 . . Recycling Units . | . . . . Scanalyzers . | . . . . Garrison Access . | . . . . Total Hacks 9 | . 9 . . Successful 7 | . 7 . . Failed 2 | . 2 . . Catastrophic 1 | . 1 . . Database Lockouts . | . . . . Manual 4 | . 4 . . Terminals 5 | . 5 . . Fabricators . | . . . . Repair Stations 4 | . 4 . . Recycling Units . | . . . . Scanalyzers . | . . . . Garrison Access . | . . . . Terminal Hacks 2 | . 2 . . Maintenance Status 1 | . 1 . . Surveillance Status 1 | . 1 . . Fabricator Hacks . | . . . . Repair Station Hacks 4 | . 4 . . Scan Component 2 | . 2 . . Repair 2 | . 2 . . Recycling Unit Hacks . | . . . . Scanalyzer . | . . . . Garrison Access Hacks . | . . . . Unauthorized Hacks 1 | . 1 . . Terminals 1 | . 1 . . Botnet 1 | . 1 . . Fabricators . | . . . . Repair Stations . | . . . . Recycling Units . | . . . . Scanalyzers . | . . . . Garrison Access . | . . . . Data Cores Recovered 1 | . 1 . . Used . | . . . . Hacking Detections 3 | . 3 . . Full Trace Events . | . . . . Feedback Events . | . . . . Feedback Blocked . | . . . . Robot Schematics Acquired . | . . . . Robots Built . | . . . . Authchips . | . . . . Time . | . . . . Total Robot Build Rating . | . . . . Part Schematics Acquired . | . . . . Parts Built . | . . . . Authchips . | . . . . Time . | . . . . Total Part Build Rating . | . . . . Parts Repaired 2 | . 2 . . Time 64 | . 64 . . Parts Recycled . | . . . . Recycled Matter . | . . . . Retrieved Matter . | . . . . Retrieved Components . | . . . . Parts Scanalyzed . | . . . . Part Schematics Acquired . | . . . . Parts Damaged . | . . . . Bothacking | -11 -10 -10 -10 ------------ Run | Jun Mat Min Exi Used RIF Installer . | . . . . Robots Hacked . | . . . . Non-combat . | . . . . Combat . | . . . . Robot Hacks Applied . | . . . . Relay Couplers Released . | . . . . Fabnet Peak Effective % . | . . . . Robots Rewired . | . . . . Allies Hacked . | . . . . Hacks Repelled . | . . . . Allies | -11 -10 -10 -10 -------- Run | Jun Mat Min Exi Total Allies 3 | . . 3 . Largest Group 3 | . . 3 . Highest-Rated Group 40 | . . 40 . Highest-Rated Ally 16 | . . 16 . Total Orders . | . . . . Ally Attacks 10 | . . 10 . Total Damage 116 | . . 116 . Kills 2 | . . 2 . Allies Corrupted . | . . . . Allies Melted . | . . . . Intel | -11 -10 -10 -10 ------- Run | Jun Mat Min Exi Robot Analysis Total . | . . . . Derelict Logs Recovered 2 | . . 2 . Drone Launches . | . . . . Drone Recoveries . | . . . . Exploration | -11 -10 -10 -10 ------------- Run | Jun Mat Min Exi Turns Passed 2712 | 72 1756 802 82 Spaces Moved 1451 | 41 919 445 46 Core 5 | 5 . . . Treads 1446 | 36 919 445 46 Legs . | . . . . Wheels . | . . . . Hover . | . . . . Flight . | . . . . Fastest Speed 50 | 50 160 160 160 Average Speed 162 | 146 164 160 163 Slowest Speed 240 | 160 240 160 240 Overloaded Moves . | . . . . Propulsion Burnouts . | . . . . Robots Hopped . | . . . . Cave-ins Triggered . | . . . . Exploration Rate (%) 54 | 4 98 93 21 Regions Visited 3 Branch Regions 2 Pre-discovered Areas . | . . . . Known Exits Taken . | . . . . Unknown Exits Taken 3 | 1 1 1 . Scrap Searched 1 | . . 1 . Spaces Dug . | . . . . Terrain Destroyed . | . . . . Melee . | . . . . Projectile . | . . . . AOE . | . . . . Terrain Rammed . | . . . . Walls Destroyed . | . . . . Machines Disabled . | . . . . Actions | -11 -10 -10 -10 --------- Run | Jun Mat Min Exi Total 1655 | 50 1074 481 50 Wait 82 | . 76 6 . Move 1448 | 40 918 444 46 Hop . | . . . . Pick Up 17 | 4 10 3 . Fast Attach 11 | 5 6 . . Attach 1 | . 1 . . Detach 2 | . 2 . . Swap 4 | 1 2 1 . Drop 7 | . 7 . . Fire 72 | . 45 27 . Melee . | . . . . Ram . | . . . . Kick . | . . . . Crush 11 | . 7 . 4 Escape Stasis . | . . . . Rewire . | . . . . Trap . | . . . . Miscellaneous . | . . . . Route ------- -11/Junkyard -10/Materials (discovered 5 exits: [*Mat x3] / [*Min x2]) -10/Mines (discovered 3 exits: [*Mat x2] / [*Exi]) -10/Exiles History --------- Turn | Location | Event 17 | -11/Junkyard | Discovered new exit (range 15) 73 | -11/Junkyard | Entered Materials 313 | -10/Materials | Build established: Mutant 369 | -10/Materials | Discovered new exit (range 16) 765 | -10/Materials | Discovered new exit (range 3) 1025 | -10/Materials | Discovered new exit (range 13) 1086 | -10/Materials | Repaired Shield Generator 1168 | -10/Materials | Discovered new exit (range 16) 1259 | -10/Materials | Discovered new exit (range 15) 1489 | -10/Materials | Repaired Hvy. Assault Rifle 1829 | -10/Materials | Entered Mines 2087 | -10/Mines | Discovered new exit (range 14) 2154 | -10/Mines | Assisted by bots powering up and referring to "LRC-V3" 2205 | -10/Mines | Learned location of 1 exit from Materials 2221 | -10/Mines | Joined a pair of Derelicts in attacking an 0b10 outpost 2234 | -10/Mines | Learned Materials machine intel 2268 | -10/Mines | Assembled infested the area 2514 | -10/Mines | Discovered new exit (range 6) 2623 | -10/Mines | Discovered new exit (range 5) 2631 | -10/Mines | Entered Exiles 2671 | -10/Exiles | Met 8R-AWN 2683 | -10/Exiles | Attacked by the Exiles 2690 | -10/Exiles | Core integrity fell below 50% 2697 | -10/Exiles | Core integrity fell below 20% 2713 | -10/Exiles | Destroyed by as-08955 with Assembled Blade Last Messages --------------- 02692_ HV Slug penetrates as-03290. 02692_ as-03290 suffers critical hit (Destroy). 02692_ as-03290 destroyed. 02692_ Penetrated by HV Slug. 02692_ HV Slug penetrates Machine. 02694_ Slammed into as-08955. 02695_ Penetrated by HV Slug. 02702_ Hvy. Assault Rifle destroyed. 02707_ Penetrated by HV Slug. 02707_ HV Slug penetrates Assembled Analyzer. 02707_ Assembled Analyzer disabled. 02707_ HV Slug penetrates Wall. 02707_ Imp. Treads destroyed. 02709_ Penetrated by HV Slug. 02710_ Hvy. Assault Rifle destroyed. 02712_ Imp. Ion Engine destroyed. 02712_ Penetrated by HV Slug. 02712_ Imp. Treads destroyed. 02712_ Penetrated by HV Slug. 02713_ IM=O2CRFQHH >QKIP=/KFA23HENY#4G# Map ----- +----------------------------------------------------+ | ?????????????????????????????????????????????????? | | ?????????????????????????????????????????????????? | | ?????????????????????????????????????????????????? | | ?????????????????????????????????????????????????? | | ?????????????????????????????????????????????????? | | ?????????????????????????????????????????????????? | | ?????????????????????????????????????????????????? | | ?????????????????????????????????????????????????? | | ?????????????????????????????????????????????????? | | ?????????????????????????????????????????????????? | | ?????????????????????????????????????????????????? | | ?????????????????????????????????????????????????? | | ?????????????????????????????????????????????????? | | ?????????????????????????????????????????????????? | | ?????????????????????????????????????????????????? | | ?????????????????????????????????????????????????? | | ??????????????????########???????????????????????? | | ?????????????####?""""""""##?????????????????????? | | ???????????? " """ """"##????????????????????? | | ???????????? "" " #????????????????????? | | ???????????? " """#????????????????????? | | ??????????? "a"#???????????#####????? | | ??????????? " "##?????????##" #????? | | ?????????? "###???????#" #????? | | ?????????? aa ""#??????## ##???? | | ?????????? @a "#????### ###?? | | ????????????"" ;#???# ### | | ????????????""" a ##?## #" | | ?????????????""" g### | | ?????????????" %%%% ## | | ?????????????"" #"## | | ????????????? % "###"""""## | | ???????????? a%#" "##?#######? | | ????????????? ######?????????? | | ????????????? ##??????????????? | | ?????????????? " ##???????????????? | | ?????????????? """ "#????????????????? | | ????????????????" ?"#" "##????????????????? | | ??????????????????????#""" " "##?????????????????? | | ???????????????????????#######???????????????????? | | ?????????????????????????????????????????????????? | | ?????????????????????????????????????????????????? | | ?????????????????????????????????????????????????? | | ?????????????????????????????????????????????????? | | ?????????????????????????????????????????????????? | | ?????????????????????????????????????????????????? | | ?????????????????????????????????????????????????? | | ?????????????????????????????????????????????????? | | ?????????????????????????????????????????????????? | | ?????????????????????????????????????????????????? | +----------------------------------------------------+ Best States ------------- Heat Dissipation 25 Energy Generation 12 Energy Capacity 265 Matter Stores 300 Matter Capacity 300 Sight Range 16 Terrain Scan Density 10 Evasion (%) 40 Recoil Reduction 2 Item Schematics ----------------- None Robot Schematics ------------------ None Fabricated ------------ Nothing Alien Tech Used ----------------- None Achievements -------------- None Challenges ------------ None Game ------ Seed BackupRelaySword Manual? 0 Play Time 00:10:35 Cumulative 40.7 hours Start 2023.12.05 @ 07:52:56 End 2023.12.05 @ 08:04:39 Sessions 1 Manual Loads 0 Difficulty Rogue Special Mode None Game No. 71 Rogue 71 Adventurer 0 Explorer 0 Win Type - Total 0 Types 0/0/0/0/0/0/0/0/0 Lore% 26 Gallery% 34 Achievement% 30 Wizard Run 0 Options --------- ASCII 0 Keyboard 1 Movement Numpad Keybinds 0 Fullscreen 2 Font 18/SmallcapsGlow Map View 76x50 Tactical HUD 1 Map Filters NONE Filters NONE Steam 1 RUN: d9ccf39f-8f3c-4319-a149-fa962339215d